fUSD/lending_fUSD_20251201
["ID","MTS","AMOUNT","RATE_DAILY","PERIOD"]
[395264176,1764574403971,-163.70980013,0.00015408,2]
[395264177,1764574403980,-228.29835367,0.00015408,2]
[395264178,1764574403989,-150.0,0.00015413,2]
[395264179,1764574403999,-150.0,0.0001542,2]
[395264180,1764574404009,-163.70980013,0.00015425,2]
[395264181,1764574404019,-228.29835367,0.00015425,2]
[395264182,1764574404028,-150.0,0.00015427,2]
[395264183,1764574404038,-150.0,0.00015435,2]
[395264184,1764574404048,-150.0,0.00015437,2]
[395264185,1764574404058,-150.0,0.00015438,2]
[395264186,1764574404067,-163.70980013,0.00015442,2]
[395264187,1764574404076,-150.0,0.00015442,2]
[395264188,1764574404085,-228.29835367,0.00015442,2]
[395264189,1764574404094,-150.0,0.00015442,2]
[395264190,1764574404104,-500.0,0.00015449,2]
[395264191,1764574404113,-500.0,0.00015449,2]
[395264192,1764574404122,-500.0,0.00015449,2]
[395264193,1764574404131,-604.47,0.00015449,2]
[395264194,1764574404141,-604.47,0.00015449,2]
[395264195,1764574404151,-604.47,0.00015449,2]
[395264196,1764574404160,-500.0,0.00015449,2]
[395264197,1764574404169,-500.0,0.00015449,2]
[395264198,1764574404179,-500.0,0.00015449,2]
[395264199,1764574404188,-500.0,0.00015449,2]
[395264200,1764574404197,-500.0,0.00015449,2]
[395264201,1764574404207,-500.0,0.00015449,2]
[395264202,1764574404216,-500.0,0.00015449,2]
[395264203,1764574404226,-500.0,0.00015449,2]
[395264204,1764574404235,-500.0,0.00015449,2]
[395264205,1764574404245,-500.0,0.00015449,2]
[395264206,1764574404255,-500.0,0.00015449,2]
[395264207,1764574404264,-500.0,0.00015449,2]
[395264208,1764574404274,-500.0,0.00015449,2]
[395264209,1764574404283,-500.0,0.00015449,2]
[395264210,1764574404292,-500.0,0.00015449,2]
[395264211,1764574404302,-500.0,0.00015449,2]
[395264212,1764574404311,-500.0,0.00015449,2]
[395264213,1764574404321,-500.0,0.00015449,2]
[395264214,1764574404330,-500.0,0.00015449,2]
[395264215,1764574404340,-628.88445166,0.00015449,2]
[395264216,1764574404349,-500.0,0.00015449,2]
[395264217,1764574404358,-500.0,0.00015449,2]
[395264218,1764574404368,-500.0,0.00015449,2]
[395264219,1764574404377,-500.0,0.00015449,2]
[395264220,1764574404387,-500.0,0.00015449,2]
[395264221,1764574404396,-434.2840336,0.00015449,2]
[395264222,1764574404406,-500.0,0.00015449,2]
[395264223,1764574404416,-500.0,0.00015449,2]
[395264224,1764574404425,-500.0,0.00015449,2]
[395264225,1764574404434,-500.0,0.00015449,2]
[395264226,1764574404443,-500.0,0.00015449,2]
[395264227,1764574404453,-500.0,0.00015449,2]
[395264228,1764574404462,-500.0,0.00015449,2]
[395264229,1764574404472,-500.0,0.00015449,2]
[395264230,1764574404481,-500.0,0.00015449,2]
[395264231,1764574404491,-500.0,0.00015449,2]
[395264232,1764574404500,-500.0,0.00015449,2]
[395264233,1764574404508,-500.0,0.00015449,2]
[395264234,1764574404517,-500.0,0.00015449,2]
[395264235,1764574404526,-500.0,0.00015449,2]
[395264236,1764574404535,-500.0,0.00015449,2]
[395264237,1764574404544,-500.0,0.00015449,2]
[395264238,1764574404554,-500.0,0.00015449,2]
[395264239,1764574404563,-500.0,0.00015449,2]
[395264240,1764574404572,-500.0,0.00015449,2]
[395264241,1764574404581,-386.00822049,0.00015449,2]
[395264242,1764574404590,-654997.8040454,0.0001545,2]
[395264243,1764574404599,-5690.7852609,0.0001545,2]
[395264244,1764574404608,-15437.7325296,0.0001545,2]
[395264245,1764574404617,-33065.238954,0.0001545,2]
[395264246,1764574404626,-87381.5612382,0.0001545,2]
[395264247,1764574404635,-1078.8965811,0.0001545,2]
[395264248,1764574404645,-61949.8235493,0.0001545,2]
[395264249,1764574404654,-13899.1496916,0.0001545,2]
[395264250,1764574404663,-150.0,0.00015452,2]
[395264251,1764574404672,-27195.5680038,0.00015455,2]
[395264252,1764574404681,-150.0,0.00015455,2]
[395264253,1764574404690,-150.0,0.00015458,2]
[395264254,1764574404700,-163.70980013,0.00015459,2]
[395264255,1764574404708,-228.29835367,0.00015459,2]
[395264256,1764574404718,-150.0,0.00015463,2]
[395264257,1764574404727,-151.0,0.00015463,2]
[395264258,1764574404737,-1250.0,0.00015463,2]
[395264259,1764574404746,-1250.0,0.00015463,2]
[395264260,1764574404756,-1250.0,0.00015463,2]
[395264261,1764574404765,-150.0,0.00015464,2]
[395264262,1764574404775,-150.0,0.00015466,2]
[395264263,1764574404784,-1321.0,0.00015476,2]
[395264264,1764574404793,-163.70980013,0.00015476,2]
[395264265,1764574404803,-228.29835367,0.00015476,2]
[395264266,1764574404812,-150.0,0.00015483,2]
[395264267,1764574404822,-150.0,0.00015486,2]
[395264268,1764574404832,-150.0,0.00015488,2]
[395264269,1764574404841,-163.70980013,0.00015494,2]
[395264270,1764574404851,-228.29835367,0.00015494,2]
[395264271,1764574404860,-150.0,0.00015494,2]
[395264272,1764574404870,-150.0,0.00015496,2]
[395264273,1764574404879,-150.0,0.00015507,2]
[395264274,1764574404889,-150.0,0.00015508,2]
[395264275,1764574404898,-150.0,0.00015509,2]
[395264276,1764574404907,-150.0,0.0001551,2]
[395264277,1764574404916,-163.70980013,0.00015511,2]
[395264278,1764574404926,-228.29835367,0.00015511,2]
[395264279,1764574404935,-150.0,0.00015512,2]
[395264280,1764574404944,-150.0,0.00015514,2]
[395264281,1764574404954,-150.0,0.00015526,2]
[395264282,1764574404965,-163.70980013,0.00015528,2]
[395264283,1764574404977,-228.29835367,0.00015528,2]
[395264284,1764574404986,-150.0,0.0001553,2]
[395264285,1764574404995,-150.0,0.0001553,2]
[395264286,1764574405005,-150.0,0.00015537,2]
[395264287,1764574405015,-150.0,0.00015538,2]
[395264288,1764574405025,-163.70980013,0.00015545,2]
[395264289,1764574405034,-228.29835367,0.00015545,2]
[395264290,1764574405046,-150.0,0.00015545,2]
[395264291,1764574405055,-150.0,0.00015552,2]
[395264292,1764574405064,-150.0,0.00015556,2]
[395264293,1764574405073,-150.0,0.00015562,2]
[395264294,1764574405083,-163.70980013,0.00015562,2]
[395264295,1764574405092,-228.29835367,0.00015562,2]
[395264296,1764574405101,-150.0,0.00015562,2]
[395264297,1764574405110,-150.0,0.00015566,2]
[395264298,1764574405120,-150.0,0.00015574,2]
[395264299,1764574405128,-163.70980013,0.00015579,2]
[395264300,1764574405137,-228.29835367,0.00015579,2]
[395264301,1764574405146,-150.0,0.00015583,2]
[395264302,1764574405156,-150.0,0.00015586,2]
[395264303,1764574405165,-150.0,0.00015587,2]
[395264304,1764574405174,-150.0,0.00015594,2]
[395264305,1764574405183,-163.70980013,0.00015597,2]
[395264306,1764574405193,-150.0,0.00015597,2]
[395264307,1764574405202,-228.29835367,0.00015597,2]
[395264308,1764574405211,-150.0,0.00015597,2]
[395264309,1764574405221,-150.0,0.00015612,2]
[395264310,1764574405230,-1321.0,0.00015613,2]
[395264311,1764574405239,-163.70980013,0.00015614,2]
[395264312,1764574405249,-228.29835367,0.00015614,2]
[395264313,1764574405258,-150.0,0.00015615,2]
[395264314,1764574405268,-150.0,0.00015616,2]
[395264315,1764574405522,-150.0,0.00015619,2]
[395264316,1764574405531,-150.0,0.00015622,2]
[395264317,1764574405541,-150.0,0.00015627,2]
[395264318,1764574405550,-150.0,0.00015627,2]
[395264319,1764574405560,-163.70980013,0.00015631,2]
[395264320,1764574405570,-228.29835367,0.00015631,2]
[395264321,1764574405579,-150.0,0.00015637,2]
[395264322,1764574405588,-150.0,0.00015641,2]
[395264323,1764574405598,-202.5805669,0.00015643,2]
[395264324,1764574405608,-500.0,0.00015643,2]
[395264325,1764574405617,-150.0,0.00015645,2]
[395264326,1764574405627,-163.70980013,0.00015648,2]
[395264327,1764574405636,-228.29835367,0.00015648,2]
[395264328,1764574405646,-150.0,0.00015648,2]
[395264329,1764574405655,-150.0,0.0001565,2]
[395264330,1764574405665,-150.0,0.00015657,2]
[395264331,1764574405674,-1600.0,0.00015658,2]
[395264332,1764574405684,-150.0,0.00015662,2]
[395264333,1764574405693,-150.0,0.00015663,2]
[395264334,1764574405703,-163.70980013,0.00015665,2]
[395264335,1764574405713,-228.29835367,0.00015665,2]
[395264336,1764574405723,-250.0,0.00015668,2]
[395264337,1764574405732,-150.0,0.00015671,2]
[395264338,1764574405742,-150.0,0.00015675,2]
[395264339,1764574405751,-150.0,0.00015678,2]
[395264340,1764574405761,-1575.40910733,0.00015679,2]
[395264341,1764574405771,-163.70980013,0.00015682,2]
[395264342,1764574405780,-228.29835367,0.00015682,2]
[395264343,1764574405790,-150.0,0.00015685,2]
[395264344,1764574405799,-150.0,0.00015687,2]
[395264345,1764574405809,-163.70980013,0.00015699,2]
[395264346,1764574405818,-228.29835367,0.00015699,2]
[395264347,1764574405828,-150.0,0.00015699,2]
[395264348,1764574405837,-150.0,0.00015705,2]
[395264349,1764574405848,-150.0,0.00015705,2]
[395264350,1764574405858,-150.0,0.00015707,2]
[395264351,1764574405868,-150.0,0.00015712,2]
[395264352,1764574405878,-150.0,0.00015712,2]
[395264353,1764574405888,-150.0,0.00015712,2]
[395264354,1764574405897,-240.0,0.00015715,2]
[395264355,1764574405907,-163.70980013,0.00015717,2]
[395264356,1764574405916,-228.29835367,0.00015717,2]
[395264357,1764574405925,-150.0,0.00015726,2]
[395264358,1764574405935,-150.0,0.00015729,2]
[395264359,1764574405944,-150.0,0.00015731,2]
[395264360,1764574405953,-150.0,0.00015733,2]
[395264361,1764574405963,-163.70980013,0.00015734,2]
[395264362,1764574405977,-228.29835367,0.00015734,2]
[395264363,1764574405986,-150.0,0.00015735,2]
[395264364,1764574405996,-150.0,0.00015737,2]
[395264365,1764574406007,-150.0,0.00015741,2]
[395264366,1764574406016,-1321.0,0.0001575,2]
[395264367,1764574406027,-163.70980013,0.00015751,2]
[395264368,1764574406036,-150.0,0.00015751,2]
[395264369,1764574406047,-228.29835367,0.00015751,2]
[395264370,1764574406056,-150.0,0.00015751,2]
[395264371,1764574406066,-150.0,0.00015761,2]
[395264372,1764574406076,-150.0,0.00015762,2]
[395264373,1764574406092,-150.0,0.00015764,2]
[395264374,1764574406102,-163.70980013,0.00015768,2]
[395264375,1764574406112,-228.29835367,0.00015768,2]
[395264376,1764574406121,-150.0,0.00015773,2]
[395264377,1764574406131,-150.0,0.00015773,2]
[395264378,1764574406140,-150.0,0.00015781,2]
[395264379,1764574406150,-163.70980013,0.00015785,2]
[395264380,1764574406160,-228.29835367,0.00015785,2]
[395264381,1764574406170,-1607.66216427,0.00015787,2]
[395264382,1764574406179,-150.0,0.00015787,2]
[395264383,1764574406189,-150.0,0.00015789,2]
[395264384,1764574406198,-150.0,0.00015794,2]
[395264385,1764574406207,-150.0,0.00015795,2]
[395264386,1764574406216,-150.0,0.00015797,2]
[395264387,1764574406229,-163.70980013,0.00015802,2]
[395264388,1764574406238,-228.29835367,0.00015802,2]
[395264389,1764574406248,-150.0,0.00015802,2]
[395264390,1764574406258,-150.0,0.00015805,2]
[395264391,1764574406268,-2223.21323629,0.00015807,2]
[395264392,1764574406279,-150.0,0.00015812,2]
[395264393,1764574406290,-150.0,0.00015817,2]
[395264394,1764574406299,-150.0,0.00015817,2]
[395264395,1764574406309,-163.70980013,0.0001582,2]
[395264396,1764574406318,-228.29835367,0.0001582,2]
[395264397,1764574406327,-150.0,0.00015824,2]
[395264398,1764574406337,-921.94,0.00015835,2]
[395264399,1764574406347,-150.0,0.00015836,2]
[395264400,1764574406356,-163.70980013,0.00015837,2]
[395264401,1764574406366,-228.29835367,0.00015837,2]
[395264402,1764574406375,-620.56912283,0.00015837,2]
[395264403,1764574406386,-150.0,0.00015837,2]
[395264404,1764574406396,-150.0,0.00015839,2]
[395264405,1764574406406,-150.0,0.00015845,2]
[395264406,1764574406415,-500.0,0.0001585,2]
[395264407,1764574406425,-500.32162479,0.0001585,2]
[395264408,1764574406435,-161.57369762,0.0001585,2]
[395264409,1764574406444,-504.71228777,0.0001585,2]
[395264410,1764574406454,-500.0,0.0001585,2]
[395264411,1764574406463,-500.0,0.0001585,2]
[395264412,1764574406473,-500.0,0.0001585,2]
[395264413,1764574406483,-500.0,0.0001585,2]
[395264414,1764574406492,-500.0,0.0001585,2]
[395264415,1764574406502,-500.0,0.0001585,2]
[395264416,1764574406512,-179.09525737,0.0001585,2]
[395264417,1764574406523,-500.0,0.0001585,2]
[395264418,1764574406533,-500.0,0.0001585,2]
[395264419,1764574406542,-500.0,0.0001585,2]
[395264420,1764574406552,-333.57957552,0.0001585,2]
[395264421,1764574406561,-500.0,0.0001585,2]
[395264422,1764574406571,-530.92789341,0.0001585,2]
[395264423,1764574406580,-586.42715679,0.0001585,2]
[395264424,1764574406590,-500.0,0.0001585,2]
[395264425,1764574406599,-500.0,0.0001585,2]
[395264426,1764574406608,-595.94847156,0.0001585,2]
[395264427,1764574406618,-500.0,0.0001585,2]
[395264428,1764574406627,-500.0,0.0001585,2]
[395264429,1764574406636,-500.0,0.0001585,2]
[395264430,1764574406646,-500.0,0.0001585,2]
[395264431,1764574406655,-500.0,0.0001585,2]
[395264432,1764574406664,-206.01551169,0.0001585,2]
[395264433,1764574406673,-500.0,0.0001585,2]
[395264434,1764574406683,-569.20900345,0.0001585,2]
[395264435,1764574406692,-160.09780403,0.0001585,2]
[395264436,1764574406701,-507.99167839,0.0001585,2]
[395264437,1764574406711,-160.18575084,0.0001585,2]
[395264438,1764574406721,-500.0,0.0001585,2]
[395264439,1764574406731,-160.09781887,0.0001585,2]
[395264440,1764574406740,-500.0,0.0001585,2]
[395264441,1764574406750,-160.09796136,0.0001585,2]
[395264442,1764574406759,-500.0,0.0001585,2]
[395264443,1764574406769,-160.0931227,0.0001585,2]
[395264444,1764574406780,-162.15790222,0.0001585,2]
[395264445,1764574406789,-500.0,0.0001585,2]
[395264446,1764574406799,-332.16239915,0.0001585,2]
[395264447,1764574406808,-160.09781138,0.0001585,2]
[395264448,1764574406817,-500.0,0.0001585,2]
[395264449,1764574406826,-500.0,0.0001585,2]
[395264450,1764574406835,-500.0,0.0001585,2]
[395264451,1764574406845,-528.45686028,0.0001585,2]
[395264452,1764574406854,-500.0,0.0001585,2]
[395264453,1764574406863,-500.0,0.0001585,2]
[395264454,1764574406873,-500.0,0.0001585,2]
[395264455,1764574406883,-200.09019976,0.0001585,2]
[395264456,1764574406893,-500.0,0.0001585,2]
[395264457,1764574406903,-160.09684565,0.0001585,2]
[395264458,1764574406912,-501.27985406,0.0001585,2]
[395264459,1764574406922,-219.62013657,0.0001585,2]
[395264460,1764574406931,-356.06806903,0.0001585,2]
[395264461,1764574406940,-150.0,0.00015854,2]
[395264462,1764574406950,-163.70980013,0.00015854,2]
[395264463,1764574406960,-150.0,0.00015854,2]
[395264464,1764574406973,-150.0,0.00015854,2]
[395264465,1764574406983,-228.29835367,0.00015854,2]
[395264466,1764574406993,-150.0,0.00015854,2]
[395264467,1764574407003,-150.0,0.00015861,2]
[395264468,1764574407013,-150.0,0.00015862,2]
[395264469,1764574407022,-163.70980013,0.00015871,2]
[395264470,1764574407032,-228.29835367,0.00015871,2]
[395264471,1764574407041,-150.0,0.00015872,2]
[395264472,1764574407051,-150.0,0.00015878,2]
[395264473,1764574407060,-150.0,0.00015883,2]
[395264474,1764574407069,-150.0,0.00015884,2]
[395264475,1764574407079,-500.0,0.00015886,2]
[395264476,1764574407088,-4216.78,0.00015886,2]
[395264477,1764574407097,-500.0,0.00015886,2]
[395264478,1764574407106,-1321.0,0.00015887,2]
[395264479,1764574407115,-150.0,0.00015887,2]
[395264480,1764574407124,-163.70980013,0.00015888,2]
[395264481,1764574407134,-228.29835367,0.00015888,2]
[395264482,1764574407143,-150.0,0.0001589,2]
[395264483,1764574407152,-600.0,0.0001589,2]
[395264484,1764574407161,-500.0,0.00015899,2]
[395264485,1764574407170,-1384.63319299,0.000159,2]
[395264486,1764574407179,-1384.63319299,0.000159,2]
[395264487,1764574407189,-1384.63319299,0.000159,2]
[395264488,1764574407198,-150.0,0.000159,2]
[395264489,1764574407207,-163.70980013,0.00015905,2]
[395264490,1764574407216,-150.0,0.00015905,2]
[395264491,1764574407225,-228.29835367,0.00015905,2]
[395264492,1764574407234,-150.0,0.00015905,2]
[395264493,1764574407243,-150.0,0.00015912,2]
[395264494,1764574407252,-150.0,0.00015913,2]
[395264495,1764574407261,-163.70980013,0.00015923,2]
[395264496,1764574407270,-228.29835367,0.00015923,2]
[395264497,1764574407279,-150.0,0.00015927,2]
[395264498,1764574407288,-150.0,0.00015928,2]
[395264499,1764574407298,-27195.5680038,0.00015936,2]
[395264500,1764574407307,-150.0,0.00015937,2]
[395264501,1764574407316,-163.70980013,0.0001594,2]
[395264502,1764574407325,-228.29835367,0.0001594,2]
[395264503,1764574407334,-150.0,0.00015943,2]
[395264504,1764574407343,-150.0,0.00015945,2]
[395264505,1764574407353,-150.0,0.00015949,2]
[395264506,1764574407362,-150.0,0.00015952,2]
[395264507,1764574407371,-500.0,0.00015953,2]
[395264508,1764574407380,-200.0,0.00015953,2]
[395264509,1764574407389,-200.0,0.00015953,2]
[395264510,1764574407399,-150.0,0.00015956,2]
[395264511,1764574407408,-163.70980013,0.00015957,2]
[395264512,1764574407417,-228.29835367,0.00015957,2]
[395264513,1764574407426,-150.0,0.00015957,2]
[395264514,1764574407435,-150.0,0.00015962,2]
[395264515,1764574407444,-150.0,0.00015967,2]
[395264516,1764574407453,-150.0,0.00015967,2]
[395264517,1764574407463,-150.0,0.00015972,2]
[395264518,1764574407472,-6164.0,0.00015973,2]
[395264519,1764574407481,-150.0,0.00015973,2]
[395264520,1764574407490,-163.70980013,0.00015974,2]
[395264521,1764574407499,-228.29835367,0.00015974,2]
[395264522,1764574407508,-1120.16,0.00015979,2]
[395264523,1764574407517,-150.0,0.00015984,2]
[395264524,1764574407527,-150.0,0.00015987,2]
[395264525,1764574407536,-163.70980013,0.00015991,2]
[395264526,1764574407545,-228.29835367,0.00015991,2]
[395264527,1764574407555,-150.0,0.00015994,2]
[395264528,1764574407565,-150.0,0.00016,2]
[395264529,1764574407574,-552.29203276,0.00016,2]
[395264530,1764574407583,-23669.11750587,0.00016,2]
[395264531,1764574407593,-217992.40892067,0.00016,2]
[395264532,1764574407602,-2545992.93677099,0.00016,4]
[395264533,1764574407623,-36229.76814676,0.00016,4]
[395264534,1764574408030,-113300.33944379,0.00016,4]
[395264535,1764574408150,-380821.776666,0.00016,4]
[395264536,1764574408159,-150.0,0.00016003,2]
[395264537,1764574408167,-1097.0,0.00016008,2]
[395264538,1764574408176,-163.70980013,0.00016008,2]
[395264539,1764574408188,-228.29835367,0.00016008,2]
[395264540,1764574408197,-150.0,0.00016008,2]
[395264541,1764574408206,-150.0,0.00016012,2]
[395264542,1764574408215,-150.0,0.00016012,2]
[395264543,1764574408224,-150.0,0.00016016,2]
[395264544,1764574408233,-150.0,0.00016016,2]
[395264545,1764574408242,-1321.0,0.00016024,2]
[395264546,1764574408251,-163.70980013,0.00016025,2]
[395264547,1764574408261,-228.29835367,0.00016025,2]
[395264548,1764574408271,-150.0,0.00016026,2]
[395264549,1764574408280,-150.0,0.00016033,2]
[395264550,1764574408289,-150.0,0.00016037,2]
[395264551,1764574408299,-150.0,0.00016038,2]
[395264552,1764574408309,-150.0,0.0001604,2]
[395264553,1764574408318,-163.70980013,0.00016043,2]
[395264554,1764574408327,-228.29835367,0.00016043,2]
[395264555,1764574408336,-150.0,0.00016055,2]
[395264556,1764574408346,-163.70980013,0.0001606,2]
[395264557,1764574408355,-150.0,0.0001606,2]
[395264558,1764574408364,-228.29835367,0.0001606,2]
[395264559,1764574408374,-150.0,0.0001606,2]
[395264560,1764574408383,-150.0,0.00016062,2]
[395264561,1764574408393,-150.0,0.00016062,2]
[395264562,1764574408402,-150.0,0.00016067,2]
[395264563,1764574408411,-163.70980013,0.00016077,2]
[395264564,1764574408421,-228.29835367,0.00016077,2]
[395264565,1764574408432,-150.0,0.0001608,2]
[395264566,1764574408441,-150.0,0.00016082,2]
[395264567,1764574408450,-150.0,0.00016087,2]
[395264568,1764574408459,-150.0,0.00016092,2]
[395264569,1764574408468,-163.70980013,0.00016094,2]
[395264570,1764574408478,-228.29835367,0.00016094,2]
[395264571,1764574408487,-150.0,0.00016095,2]
[395264572,1764574408496,-150.0,0.000161,2]
[395264573,1764574408505,-150.0,0.00016104,2]
[395264574,1764574408514,-150.0,0.0001611,2]
[395264575,1764574408524,-163.70980013,0.00016111,2]
[395264576,1764574408534,-228.29835367,0.00016111,2]
[395264577,1764574408543,-150.0,0.00016111,2]
[395264578,1764574408553,-150.0,0.00016112,2]
[395264579,1764574408562,-9999.99,0.00016116,2]
[395264580,1764574408571,-150.0,0.00016122,2]
[395264581,1764574408580,-150.0,0.00016123,2]
[395264582,1764574408590,-150.0,0.00016126,2]
[395264583,1764574408599,-163.70980013,0.00016128,2]
[395264584,1764574408609,-228.29835367,0.00016128,2]
[395264585,1764574408618,-150.0,0.00016137,2]
[395264586,1764574408627,-150.0,0.00016137,2]
[395264587,1764574408636,-150.0,0.00016137,2]
[395264588,1764574408646,-150.0,0.00016137,2]
[395264589,1764574408655,-163.70980013,0.00016146,2]
[395264590,1764574408664,-228.29835367,0.00016146,2]
[395264591,1764574408673,-197.83401754,0.00016148,2]
[395264592,1764574408682,-1120.16,0.00016148,2]
[395264593,1764574408692,-1120.16,0.00016148,2]
[395264594,1764574408701,-500.0,0.00016148,2]
[395264595,1764574408710,-500.0,0.00016148,2]
[395264596,1764574408721,-500.0,0.00016148,2]
[395264597,1764574408730,-921.94,0.00016148,2]
[395264598,1764574408739,-921.94,0.00016148,2]
[395264599,1764574408748,-4216.78,0.00016148,2]
[395264600,1764574408757,-4216.78,0.00016148,2]
[395264601,1764574408767,-500.0,0.00016148,2]
[395264602,1764574408776,-163.01493173,0.00016148,2]
[395264603,1764574408786,-500.0,0.00016148,2]
[395264604,1764574408795,-500.0,0.00016148,2]
[395264605,1764574408804,-150.0,0.00016148,2]
[395264606,1764574408813,-250.0,0.00016149,2]
[395264607,1764574408822,-254.91048614,0.00016149,2]
[395264608,1764574408832,-620.0,0.00016149,2]
[395264609,1764574408841,-248.71531821,0.00016149,2]
[395264610,1764574408850,-226.43577512,0.0001615,2]
[395264611,1764574408859,-373.97112144,0.0001615,2]
[395264612,1764574408868,-2092.314224,0.0001615,2]
[395264613,1764574408877,-150.0,0.00016151,2]
[395264614,1764574408892,-150.0,0.00016152,2]
[395264615,1764574408902,-1321.0,0.00016161,2]
[395264616,1764574408911,-150.0,0.00016162,2]
[395264617,1764574408921,-163.70980013,0.00016163,2]
[395264618,1764574408931,-228.29835367,0.00016163,2]
[395264619,1764574408940,-150.0,0.00016163,2]
[395264620,1764574408950,-150.0,0.00016164,2]
[395264621,1764574408960,-150.0,0.0001617,2]
[395264622,1764574408974,-150.0,0.00016174,2]
[395264623,1764574408983,-518.0,0.00016174,2]
[395264624,1764574408993,-150.0,0.00016179,2]
[395264625,1764574409002,-163.70980013,0.0001618,2]
[395264626,1764574409014,-228.29835367,0.0001618,2]
[395264627,1764574409024,-150.0,0.00016182,2]
[395264628,1764574409033,-150.0,0.00016187,2]
[395264629,1764574409044,-150.0,0.00016192,2]
[395264630,1764574409053,-150.0,0.00016194,2]
[395264631,1764574409063,-518.0,0.00016194,2]
[395264632,1764574409072,-163.70980013,0.00016197,2]
[395264633,1764574409082,-228.29835367,0.00016197,2]
[395264634,1764574409091,-5000.00374398,0.000162,5]
[395264635,1764574409101,-150.0,0.00016207,2]
[395264636,1764574409110,-150.0,0.00016211,2]
[395264637,1764574409119,-150.0,0.00016212,2]
[395264638,1764574409128,-163.70980013,0.00016214,2]
[395264639,1764574409137,-150.0,0.00016214,2]
[395264640,1764574409148,-228.29835367,0.00016214,2]
[395264641,1764574409157,-150.0,0.00016214,2]
[395264642,1764574409167,-150.0,0.00016219,2]
[395264643,1764574409176,-163.70980013,0.00016231,2]
[395264644,1764574409185,-228.29835367,0.00016231,2]
[395264645,1764574409194,-150.0,0.00016234,2]
[395264646,1764574409203,-150.0,0.00016236,2]
[395264647,1764574409213,-150.0,0.00016237,2]
[395264648,1764574409222,-150.0,0.00016241,2]
[395264649,1764574409231,-150.0,0.00016248,2]
[395264650,1764574409241,-163.70980013,0.00016249,2]
[395264651,1764574409250,-228.29835367,0.00016249,2]
[395264652,1764574409260,-823.0,0.00016257,2]
[395264653,1764574409269,-150.0,0.00016258,2]
[395264654,1764574409278,-150.0,0.00016258,2]
[395264655,1764574409287,-150.0,0.00016262,2]
[395264656,1764574409297,-150.0,0.00016262,2]
[395264657,1764574409306,-150.0,0.00016266,2]
[395264658,1764574409316,-163.70980013,0.00016266,2]
[395264659,1764574409325,-228.29835367,0.00016266,2]
[395264660,1764574409335,-150.0,0.00016271,2]
[395264661,1764574409344,-150.0,0.00016274,2]
[395264662,1764574409353,-150.0,0.0001628,2]
[395264663,1764574409363,-518.0,0.00016281,2]
[395264664,1764574409372,-163.70980013,0.00016283,2]
[395264665,1764574409382,-228.29835367,0.00016283,2]
[395264666,1764574409392,-150.0,0.00016287,2]
[395264667,1764574409401,-150.0,0.0001629,2]
[395264668,1764574409411,-175.6,0.00016297,2]
[395264669,1764574409419,-1321.0,0.00016298,2]
[395264670,1764574409428,-163.70980013,0.000163,2]
[395264671,1764574409438,-228.29835367,0.000163,2]
[395264672,1764574409447,-150.0,0.00016301,2]
[395264673,1764574409460,-150.0,0.00016302,2]
[395264674,1764574409470,-150.0,0.00016307,2]
[395264675,1764574409479,-150.0,0.00016307,2]